bitfinex/quotes_ETHUSD_20250529
["timestamp","ask_amount","ask_price","bid_price","bid_amount"]
[1748536134162,7.80283033,2649.2,2648.5,3.77563973]
[1748536134467,7.80283033,2649.2,2648.1,11.77627024]
[1748536134468,3.77486693,2649.1,2648.1,11.77627024]
[1748536134666,3.77508399,2649.0,2648.3,3.77593542]
[1748536134959,0.3775084,2648.9,2648.3,3.77593542]
[1748536135169,4.15270394,2648.9,2648.4,0.15212415]
[1748536135939,3.7757221,2648.5,2648.4,0.15212415]
[1748536136137,7.7997221,2648.5,2648.4,0.15212415]
[1748536136341,0.8302,2648.4,2647.1,0.7722]
[1748536136542,3.77664679,2647.9,2647.2,11.77756957]
[1748536136762,4.025,2647.8,2647.3,3.77735327]
[1748536136969,4.025,2647.7,2647.3,3.77731198]
[1748536137144,4.025,2647.7,2647.4,3.7771592]
[1748536137338,4.024,2647.8,2647.5,3.77711892]
[1748536137568,4.025,2647.8,2647.5,3.77711892]
[1748536137862,4.025,2647.8,2647.2,36.808978]
[1748536138066,4.025,2647.8,2647.4,17.35728492]
[1748536138364,4.025,2647.8,2647.3,3.67511944]
[1748536138365,4.025,2647.8,2647.6,10.0]
[1748536138666,4.025,2647.8,2647.6,3.77699875]
[1748536138854,4.025,2647.8,2647.6,13.77699875]
[1748536139050,4.025,2647.8,2647.5,13.77710552]
[1748536139272,4.021,2647.9,2647.6,10.0]
[1748536139438,4.021,2647.9,2647.6,13.77697983]
[1748536139638,4.021,2647.9,2647.7,3.77679491]
[1748536140151,4.02,2648.1,2647.8,8.0]
[1748536140390,3.77534781,2648.8,2647.8,8.0]
[1748536140391,0.7687,2648.8,2648.1,3.77618425]
[1748536140566,4.021,2648.7,2648.1,3.77622697]
[1748536140736,4.021,2648.7,2648.2,10.0]
[1748536140943,4.87749563,2648.7,2648.2,10.0]
[1748536141142,1.4,2648.5,2648.2,10.0]
[1748536142139,0.7687,2648.8,2648.3,3.77591671]
[1748536142373,4.018,2648.7,2648.2,13.77607777]
[1748536142575,4.018,2648.7,2647.9,3.77654204]
[1748536142783,8.27218685,2648.7,2648.0,3.77636414]
[1748536142943,8.27218685,2648.7,2648.1,6.1880833]
[1748536143140,4.49667,2648.7,2648.1,3.7762833]
[1748536143376,4.017,2648.6,2648.4,3.775859]
[1748536144276,3.77502157,2649.0,2648.4,3.775859]
[1748536144577,4.3738265,2648.9,2648.5,3.77571491]
[1748536144781,4.016,2648.9,2648.4,3.77583592]
[1748536144939,5.70921886,2649.1,2648.5,3.77571081]
[1748536145273,8.14689308,2649.0,2648.4,13.77579345]
[1748536145439,0.35787,2648.9,2648.4,3.77579345]
[1748536145646,7.78902308,2649.0,2648.3,3.77599508]
[1748536145647,4.014,2649.0,2648.3,3.77599508]
[1748536145855,0.35793163,2648.9,2648.2,18.492597]
[1748536146067,4.014,2649.0,2648.5,3.77571748]
[1748536146380,4.013,2648.9,2648.5,3.77571748]
[1748536146884,1.9343,2649.1,2648.5,0.37287712]
[1748536147085,0.35550925,2649.3,2648.7,2.0087]
[1748536147267,0.35805427,2649.2,2648.8,10.0]
[1748536147445,0.35805427,2649.1,2648.8,10.0]
[1748536147646,4.36850925,2649.3,2648.6,3.77548849]
[1748536147845,3.77493446,2649.1,2648.5,10.0]
[1748536148089,3.77478368,2649.2,2648.5,3.77568915]
[1748536148255,0.35799757,2649.1,2648.5,3.77568915]
[1748536148459,0.8261,2649.0,2648.4,13.77581342]
[1748536148653,4.012,2648.9,2648.5,3.7757221]
[1748536148866,4.012,2648.9,2648.4,8.0]
[1748536148867,4.012,2648.9,2648.7,2.266539]
[1748536149058,4.012,2648.9,2648.6,3.77554741]
[1748536149243,4.01,2648.9,2648.5,10.0]
[1748536149448,4.01,2648.9,2648.4,12.16132607]
[1748536149770,4.01,2648.9,2648.5,3.77566139]
[1748536150091,4.01,2648.9,2648.7,10.0]
[1748536150587,4.01,2648.9,2648.5,13.77565942]
[1748536150892,4.01,2648.9,2648.7,10.0]
[1748536151082,4.87109683,2648.9,2648.4,0.38556053]
[1748536151388,4.01,2648.9,2648.6,10.0]
[1748536151563,4.01,2648.9,2648.5,3.77571003]
[1748536152858,4.01,2648.9,2648.4,10.37339371]
[1748536153086,4.01,2648.9,2648.5,3.77572193]
[1748536153246,0.35854192,2648.8,2648.5,3.77572193]
[1748536153451,4.01,2648.9,2648.5,3.77572193]
[1748536153452,4.01,2648.9,2648.5,10.0]
[1748536153650,0.35857265,2648.8,2648.5,10.0]
[1748536153851,4.01,2648.9,2648.5,6.09697839]
[1748536154051,0.35854756,2648.8,2648.5,3.77570339]
[1748536154386,4.01,2648.9,2648.5,3.77570339]
[1748536154548,0.35875696,2648.8,2648.3,33.549367]
[1748536154747,4.01,2648.9,2648.6,10.0]
[1748536154985,0.35875845,2648.8,2648.6,10.0]
[1748536155189,4.01,2648.9,2648.5,10.0]
[1748536155495,0.35905945,2648.8,2648.5,10.0]
[1748536155684,0.35905945,2648.7,2648.4,0.37033682]
[1748536155883,7.78523417,2648.9,2648.3,13.77594386]
[1748536156186,0.35903948,2648.8,2648.3,3.77594386]
[1748536156351,0.35903948,2648.7,2648.3,10.0]
[1748536156553,4.13468922,2648.6,2648.1,15.411399]
[1748536156793,8.13479289,2648.5,2648.2,10.0]
[1748536156964,0.35929277,2648.4,2648.1,0.37635727]
[1748536157290,0.35929277,2648.4,2648.0,13.77641389]
[1748536157291,0.35977029,2648.3,2648.0,10.0]
[1748536157493,4.0,2648.5,2648.2,3.77608772]
[1748536157691,0.35981463,2648.4,2648.2,3.77608772]
[1748536157895,0.44911596,2648.7,2648.2,3.77614215]
[1748536158061,1.88334718,2648.9,2648.2,3.77614215]
[1748536158062,4.35882221,2648.6,2648.2,3.77614215]
[1748536158260,0.35982221,2648.5,2648.3,3.77592917]
[1748536158455,3.999,2648.6,2648.4,2.650688]
[1748536158788,0.36000599,2648.5,2648.4,2.650688]
[1748536160511,0.36000599,2648.5,2648.4,10.0]
[1748536160795,0.36000599,2648.5,2648.3,3.77592917]
[1748536160986,0.36000599,2648.4,2648.3,6.03841717]
[1748536161187,0.36000599,2648.4,2648.3,10.0]
[1748536161381,0.36000599,2648.4,2648.2,3.77609135]
[1748536161382,0.36018005,2648.4,2648.2,3.77609135]
[1748536161693,3.994,2648.6,2648.2,6.835413]
[1748536161897,0.36018602,2648.5,2648.4,8.11421434]
[1748536162285,0.36018602,2648.5,2648.4,4.338417]
[1748536162486,0.36018602,2648.5,2648.3,13.77593603]
[1748536162692,3.993,2648.7,2648.3,13.77593603]
[1748536162887,0.36020591,2648.6,2648.1,0.38127229]
[1748536163088,0.36020591,2648.5,2648.1,3.77622857]
[1748536163276,0.36020591,2648.4,2648.2,3.77612855]
[1748536163476,4.5656644,2648.7,2648.3,3.77596816]
[1748536163703,0.36024194,2648.6,2648.3,10.0]
[1748536163902,0.36024194,2648.5,2648.3,10.0]
[1748536164107,0.36024194,2648.4,2648.3,10.0]
[1748536164683,4.5656644,2648.7,2648.3,10.0]
[1748536164888,0.36025586,2648.6,2648.3,13.77590913]
[1748536165078,0.36025586,2648.5,2648.3,3.77590913]
[1748536165273,4.5656644,2648.7,2648.3,10.0]
[1748536165476,0.36026393,2648.6,2648.3,10.0]
[1748536165695,0.36026731,2648.5,2648.1,0.37798871]
[1748536165900,4.5656644,2648.7,2648.1,3.77629243]
[1748536166105,0.3602687,2648.6,2648.3,10.0]
[1748536166402,0.3602687,2648.5,2648.2,3.77614031]
[1748536166608,4.5656644,2648.7,2648.2,3.77614031]
[1748536166772,0.36030502,2648.6,2648.1,3.7762165]
[1748536166973,0.36030502,2648.5,2648.2,3.77602239]
[1748536167173,4.5656644,2648.7,2648.2,3.77602239]
[1748536167475,1.19453554,2648.6,2648.1,0.37089316]
[1748536167796,1.19453554,2648.6,2647.8,6.44756372]
[1748536167797,3.77589591,2648.4,2647.8,6.44756372]
[1748536168111,0.36043782,2648.3,2647.9,3.77657453]
[1748536168325,6.1576,2648.5,2648.3,3.77594621]
[1748536168471,0.3607473,2648.4,2648.3,3.77594621]
[1748536168671,0.3607473,2648.4,2648.3,6.52413121]
[1748536169425,1.22293414,2648.8,2648.3,6.52413121]
[1748536169426,3.987,2648.5,2648.4,10.0]
[1748536169594,3.987,2648.5,2648.4,3.77586467]
[1748536169921,0.7726,2648.8,2648.4,0.75518109]
[1748536170090,0.36098454,2648.7,2648.4,3.77576376]
[1748536170295,4.7656,2648.8,2648.4,3.77576376]
[1748536170528,0.36099723,2648.7,2648.4,3.77576376]
[1748536170690,8.54093114,2648.8,2648.3,13.77597936]
[1748536170891,0.3609986,2648.7,2648.3,3.77597936]
[1748536171103,5.99720848,2648.8,2648.4,13.77586408]
[1748536171281,4.3540175,2648.7,2648.4,3.77586408]
[1748536171482,3.993,2648.7,2648.4,3.77586408]
[1748536173322,0.7726,2648.8,2648.5,3.77564858]
[1748536173633,4.3511821,2648.7,2648.6,3.77557161]
[1748536173782,3.99,2648.7,2648.5,3.77563847]
[1748536174525,3.989,2648.7,2648.4,3.77580476]
[1748536175032,3.988,2648.7,2648.4,3.77580476]
[1748536175562,3.988,2648.7,2648.3,3.77599472]
[1748536175689,3.988,2648.7,2648.5,3.77571553]
[1748536176396,3.988,2648.7,2648.3,3.77599472]
[1748536176397,3.988,2648.7,2648.3,10.0]
[1748536176598,3.988,2648.7,2648.4,3.77586127]
[1748536177832,3.988,2648.7,2648.4,10.0]
[1748536178206,3.988,2648.7,2648.4,13.77586056]
[1748536178405,3.988,2648.7,2648.4,3.77586056]
[1748536180770,3.988,2648.7,2648.3,3.77592486]
[1748536181060,3.988,2648.7,2648.2,3.77610543]
[1748536181061,3.988,2648.7,2648.4,3.77585486]
[1748536181933,3.988,2648.7,2648.3,3.77598316]
[1748536182227,3.988,2648.7,2648.4,3.77579005]
[1748536183450,3.988,2648.7,2648.4,10.0]
[1748536183655,3.988,2648.7,2648.2,3.77608408]
[1748536183656,3.988,2648.7,2648.3,4.730904]
[1748536183958,3.988,2648.7,2648.3,3.77593259]
[1748536184143,3.988,2648.7,2648.4,10.0]
[1748536184343,3.988,2648.7,2648.3,3.77588727]
[1748536184548,3.988,2648.7,2648.4,10.0]
[1748536184974,0.7726,2648.8,2648.1,8.0]
[1748536185126,0.45186755,2649.5,2648.5,10.994127]
[1748536185331,0.36150846,2649.2,2649.0,3.774984]
[1748536185540,0.36150846,2649.1,2649.0,3.774984]
[1748536185759,4.57129383,2649.4,2648.9,3.77508723]
[1748536186024,4.3375153,2649.2,2648.8,3.77525734]
[1748536186228,3.976,2649.2,2648.7,13.77532217]
[1748536186468,3.976,2649.2,2648.8,6.20298341]
[1748536186627,3.976,2649.2,2648.9,10.0]
[1748536186822,3.976,2649.2,2648.8,3.77521141]
[1748536187455,3.976,2649.2,2648.9,10.0]
[1748536187927,8.47718892,2649.2,2648.5,3.77567523]
[1748536188265,3.972,2649.1,2648.4,10.0]
[1748536188582,3.972,2649.1,2648.8,13.77522252]
[1748536188784,3.972,2649.1,2648.8,3.77522252]
[1748536190076,3.97,2649.0,2648.9,3.77508372]
[1748536190256,3.97,2649.0,2648.8,3.7752672]
[1748536190425,3.97,2649.0,2648.9,3.77515194]
[1748536192247,0.35550925,2649.3,2648.9,3.77514272]
[1748536192594,3.966,2649.2,2649.0,3.77486807]
[1748536192779,3.966,2649.1,2649.0,3.77486807]
[1748536193354,3.965,2649.1,2649.0,3.77486807]
[1748536194270,0.35550925,2649.3,2649.0,3.77486807]
[1748536194490,3.965,2649.1,2648.9,3.77507749]
[1748536194863,3.965,2649.1,2649.0,3.77500943]
[1748536195069,0.35550925,2649.3,2649.0,3.77500943]
[1748536195272,3.965,2649.2,2649.0,3.77500943]
[1748536195474,3.965,2649.2,2648.9,3.77514303]
[1748536195788,3.965,2649.2,2648.7,10.0]
[1748536195958,3.965,2649.2,2649.0,10.0]
[1748536196289,0.35550925,2649.3,2649.0,10.0]
[1748536196455,3.965,2649.1,2649.0,10.0]
[1748536197176,0.35550925,2649.3,2649.0,10.0]
[1748536197494,3.965,2649.2,2649.0,10.0]
[1748536197985,3.965,2649.2,2648.9,10.0]
[1748536198140,3.965,2649.2,2648.8,3.77520265]
[1748536198346,3.965,2649.2,2648.6,10.0]
[1748536198347,8.62899718,2649.2,2648.6,10.0]
[1748536198582,3.77488291,2649.1,2648.6,13.77550274]
[1748536198791,0.7587,2648.8,2648.6,10.0]
[1748536198974,0.7587,2648.8,2648.4,3.77580543]
[1748536198975,3.965,2648.7,2648.4,3.77580543]
[1748536199305,3.965,2648.7,2648.4,8.0]
[1748536199507,3.965,2648.7,2648.4,3.77576411]
[1748536200390,3.965,2648.7,2648.2,3.77609327]
[1748536200391,3.965,2648.7,2648.2,10.0]
[1748536200555,3.965,2648.7,2648.3,3.77598288]
[1748536200753,3.965,2648.7,2648.4,10.0]
[1748536200949,1.4,2648.5,2648.4,5.79137167]
[1748536201161,3.965,2648.7,2648.5,3.77563782]
[1748536201364,0.7587,2648.8,2648.6,3.7755036]
[1748536201569,3.964,2648.8,2648.7,3.775437]
[1748536202610,3.964,2648.8,2648.6,3.77550031]
[1748536202792,3.77567827,2648.6,2648.0,14.843237]
[1748536203109,3.965,2648.5,2647.8,0.37001946]
[1748536203398,3.77610929,2648.3,2647.8,10.0]
[1748536203566,7.74121197,2648.2,2647.5,3.77703689]
[1748536203755,3.965,2648.2,2647.9,3.77656107]
[1748536204156,3.965,2648.2,2647.8,3.77670724]
[1748536204369,3.965,2648.2,2647.8,3.77670369]
[1748536204570,4.82055074,2648.2,2647.7,10.0]
[1748536204954,0.8211,2648.0,2647.6,16.46295618]
[1748536205159,0.8211,2648.0,2647.6,14.000971]
[1748536205389,0.8211,2648.0,2647.6,3.77693482]
[1748536205592,0.8211,2648.0,2647.6,12.994971]
[1748536205782,0.8211,2648.0,2647.6,3.77695934]
[1748536205983,1.4,2647.8,2647.7,10.0]
[1748536206192,1.4,2647.8,2647.7,15.5322734]
[1748536206372,1.4,2647.8,2647.7,10.8073884]
[1748536206577,1.4,2647.8,2647.7,8.0155884]
[1748536206776,1.4,2647.8,2647.7,9.1660884]
[1748536207010,1.4,2647.8,2647.7,7.6728874]
[1748536207210,1.4,2647.8,2647.5,0.38579116]
[1748536207409,0.7687,2647.7,2647.2,11.77747254]
[1748536207611,0.7687,2647.7,2647.4,10.0]
[1748536207837,0.7687,2647.7,2647.5,10.0]
[1748536208035,0.7687,2647.7,2647.4,10.0]
[1748536208332,0.7687,2647.7,2647.4,3.77726271]
[1748536208733,0.7687,2647.7,2647.4,10.37843162]
[1748536209048,5.0190109,2647.7,2647.4,0.37843162]
[1748536209257,5.0190109,2647.7,2647.0,3.77779824]
[1748536209398,5.0190109,2647.7,2647.2,10.0]
[1748536209600,0.7687,2647.7,2647.3,10.0]
[1748536210029,0.7687,2647.7,2647.4,3.77722187]
[1748536210352,3.965,2647.6,2647.5,10.0]
[1748536210576,0.8178,2648.1,2647.6,10.0]
[1748536210836,0.8178,2648.1,2647.6,13.77693412]
[1748536211133,7.7424629,2648.0,2647.6,10.0]
[1748536211319,3.966,2648.0,2647.5,10.0]
[1748536211518,3.966,2648.0,2647.4,3.77726523]
[1748536211697,7.74245965,2648.0,2647.4,1.75548024]
[1748536211905,3.966,2648.0,2647.4,1.75548024]
[1748536212315,3.966,2648.0,2647.4,5.53274681]
[1748536212511,3.966,2648.0,2647.6,14.853253]
[1748536212717,3.966,2648.0,2647.6,3.77700186]
[1748536213137,0.8178,2648.1,2647.5,10.0]
[1748536213138,0.8178,2648.1,2647.7,3.77683066]
[1748536213458,3.965,2648.0,2647.7,10.0]
[1748536213661,3.965,2648.0,2647.6,3.385253]
[1748536213842,7.74149705,2648.0,2647.2,15.633869]
[1748536214159,3.965,2648.0,2647.6,10.0]
[1748536214654,3.965,2648.0,2647.5,13.514281]
[1748536214870,3.965,2648.0,2647.4,14.496984]
[1748536215077,3.965,2648.0,2647.4,10.0]
[1748536215273,7.7415127,2648.0,2647.5,10.0]
[1748536215784,3.7765837,2647.9,2647.4,10.0]
[1748536216091,4.60931019,2647.7,2647.3,0.38249941]
[1748536216384,3.966,2647.6,2647.1,10.0]
[1748536216528,3.966,2647.6,2647.2,10.0]
[1748536216942,3.966,2647.6,2647.1,3.77767913]
[1748536217540,3.966,2647.6,2647.2,3.77754783]
[1748536217743,3.966,2647.5,2647.3,4.53287588]
[1748536217950,3.966,2647.4,2647.3,0.7555227]
[1748536218195,3.966,2647.5,2647.3,0.7555227]
[1748536218398,3.966,2647.5,2647.2,3.77749403]
[1748536218549,3.966,2647.5,2647.2,3.77751477]
[1748536218748,3.966,2647.5,2647.2,13.77751477]
[1748536218944,3.966,2647.5,2647.2,3.77751477]
[1748536219245,1.4,2647.8,2647.7,3.77686293]
[1748536219552,3.966,2647.9,2647.7,10.0]
[1748536219875,3.966,2647.9,2647.2,0.38143383]
[1748536220177,3.966,2647.9,2647.5,3.77714136]
[1748536220694,3.966,2647.8,2647.4,18.0]
[1748536220873,3.966,2647.8,2647.6,10.0]
[1748536221079,1.4,2647.7,2647.6,10.0]
[1748536221278,1.4,2647.7,2647.5,3.77706784]
[1748536221452,1.4,2647.7,2647.6,3.77700558]
[1748536221777,1.4,2647.7,2647.6,2.863253]
[1748536221978,1.4,2647.7,2647.5,14.780706]
[1748536222281,1.4,2647.7,2647.6,10.0]
[1748536222457,0.44987962,2648.7,2647.6,11.31530658]
[1748536222777,4.84193783,2648.4,2647.8,10.0]
[1748536222953,4.84193783,2648.4,2647.8,3.77670837]
[1748536223153,3.968,2648.3,2647.8,10.0]
[1748536223354,7.74409089,2648.3,2647.8,10.0]
[1748536223560,7.74409089,2648.3,2647.8,0.37656556]
[1748536223782,4.53530959,2648.1,2647.5,14.52889819]
[1748536223973,0.759,2648.1,2647.6,3.7769699]
[1748536224174,3.966,2648.0,2647.7,2.981506]
[1748536224679,3.966,2648.0,2647.5,2.1916]
[1748536224889,3.966,2648.0,2647.7,12.682378]
[1748536225211,3.966,2648.0,2647.8,10.0]
[1748536225500,0.759,2648.1,2647.8,10.0]
[1748536225743,3.966,2648.0,2647.8,10.0]
[1748536226065,1.4,2647.9,2647.8,10.0]
[1748536226263,5.366,2647.9,2647.7,8.15115558]
[1748536226455,5.366,2647.9,2647.7,6.00835263]
[1748536226857,1.4,2647.9,2647.8,10.0]
[1748536227204,1.4,2647.9,2647.8,13.77672029]
[1748536227411,1.4,2647.9,2647.8,3.77672029]
[1748536227556,1.4,2647.9,2647.8,25.27739129]
[1748536227758,4.7617,2648.5,2648.3,3.77599491]
[1748536228112,3.966,2648.4,2648.3,0.38485496]
[1748536228254,3.966,2648.4,2648.1,8.92658362]
[1748536228449,0.7957,2648.8,2648.5,3.77572008]
[1748536228656,3.966,2648.6,2648.2,3.77602581]
[1748536228903,3.966,2648.6,2648.3,3.7759055]
[1748536229289,3.966,2648.6,2648.4,10.0]
[1748536229522,3.966,2648.6,2648.4,13.77584398]
[1748536229687,0.7957,2648.8,2648.4,13.77584398]
[1748536229893,3.966,2648.7,2648.4,13.77584398]
[1748536230084,3.966,2648.7,2648.5,3.77571146]
[1748536230286,0.7957,2648.8,2648.4,3.77586467]
[1748536230523,4.7617,2648.8,2648.6,3.77553766]
[1748536230734,3.966,2648.8,2648.6,3.77555424]
[1748536231026,0.35226925,2648.9,2648.6,3.77555424]
[1748536231241,3.966,2648.8,2648.7,3.77537109]
[1748536231400,3.966,2648.8,2648.6,13.77549512]
[1748536231790,3.916,2648.8,2648.6,10.0]
[1748536231996,3.916,2648.8,2648.5,2.402378]
[1748536232346,3.916,2648.8,2648.6,10.0]
[1748536232528,0.35226925,2648.9,2648.6,10.0]
[1748536232847,3.965,2648.8,2648.4,10.0]
[1748536233153,3.965,2648.8,2648.6,10.0]
[1748536233432,3.965,2648.8,2648.5,3.77569767]
[1748536233643,3.965,2648.8,2648.5,10.0]
[1748536233825,3.965,2648.8,2648.6,10.0]
[1748536233998,3.965,2648.8,2648.4,5.32977616]
[1748536234201,3.965,2648.8,2648.4,5.32981146]
[1748536234446,3.965,2648.8,2648.4,1.5539684]
[1748536234729,3.965,2648.8,2648.3,10.3859498]
[1748536234931,3.965,2648.8,2648.4,3.77585269]
[1748536235296,3.965,2648.8,2648.5,10.0]
[1748536235496,0.35226925,2648.9,2648.5,3.77565738]
[1748536235750,3.965,2648.8,2648.5,3.77565738]
[1748536236116,0.35226925,2648.9,2648.8,3.77529447]
[1748536236446,4.31726925,2648.9,2648.7,3.77536859]
[1748536236950,0.35226925,2648.9,2648.8,7.13202447]
[1748536238564,0.35226925,2648.9,2648.8,3.77529447]
[1748536239347,0.35226925,2648.9,2648.8,5.82638947]
[1748536240263,0.35226925,2648.9,2648.8,6.99983632]
[1748536241819,0.35226925,2648.9,2648.8,3.22454185]
[1748536242040,0.35226925,2648.9,2648.8,6.99983632]
[1748536244261,0.35550925,2649.3,2648.9,10.0]
[1748536244409,0.35550925,2649.3,2648.8,17.45059927]
[1748536244410,0.35550925,2649.3,2649.2,13.19560444]
[1748536244629,0.35550925,2649.3,2649.2,14.65901923]
[1748536245133,0.35550925,2649.3,2649.2,12.18249423]
[1748536245554,0.35550925,2649.3,2649.2,20.18249423]
[1748536247471,0.35550925,2649.3,2649.2,22.08325718]
[1748536247781,0.35550925,2649.3,2649.2,22.63325718]
[1748536247941,0.35550925,2649.3,2649.2,23.38365718]
[1748536249372,0.35550925,2649.3,2649.2,17.71659357]
[1748536249530,0.35550925,2649.3,2649.2,21.49131801]
[1748536251928,0.35550925,2649.3,2649.2,20.94131801]
[1748536253537,0.35550925,2649.3,2649.2,21.49131801]
[1748536253754,0.35550925,2649.3,2649.2,10.29015506]
[1748536253950,0.35550925,2649.3,2649.2,14.80215506]
[1748536254147,0.35550925,2649.3,2649.2,22.80215506]
[1748536256110,0.35550925,2649.3,2649.2,8.0]
[1748536256243,0.35550925,2649.3,2648.9,5.366752]
[1748536256579,0.35550925,2649.3,2649.1,2.754923]
[1748536256787,0.35550925,2649.3,2649.1,18.0]
[1748536257084,0.35550925,2649.3,2649.2,5.98219444]
[1748536257392,0.35550925,2649.3,2649.1,11.77481574]
[1748536257547,0.35550925,2649.3,2649.1,8.0]
[1748536257749,0.35550925,2649.3,2649.1,11.77484755]
[1748536258876,0.807,2649.5,2649.1,11.77484755]
[1748536259791,1.2839,2649.5,2648.9,29.27597545]
[1748536260002,3.77451914,2649.4,2648.8,11.333251]
[1748536260289,0.7741,2649.2,2649.0,10.0]
[1748536260474,5.362,2649.3,2649.1,3.77473683]
[1748536260475,1.4,2649.3,2649.1,3.77473683]
[1748536260675,1.4,2649.3,2649.2,18.74723044]
[1748536260882,1.4,2649.3,2649.2,8.74723044]
[1748536261400,3.962,2649.6,2649.4,10.0]
[1748536261695,0.7562,2649.8,2649.4,13.77443678]
[1748536261893,3.962,2649.7,2649.4,3.77443678]
[1748536262300,1.24416331,2649.8,2649.4,3.77443678]
[1748536262798,1.24416331,2649.8,2649.2,3.77461671]
[1748536263003,0.771,2649.7,2648.9,3.77505572]
[1748536263203,0.48796331,2649.8,2648.3,0.57956935]
[1748536263204,0.771,2649.2,2648.4,16.432845]
[1748536263432,0.771,2649.2,2648.7,10.0]
[1748536263624,4.733,2649.2,2648.8,3.77516939]
[1748536263800,4.733,2649.2,2648.9,10.0]
[1748536263996,4.733,2649.2,2649.0,10.0]
[1748536264332,4.733,2649.2,2648.8,10.0]
[1748536264539,4.733,2649.2,2649.0,10.0]
[1748536264688,4.733,2649.2,2648.9,10.0]
[1748536264892,4.733,2649.2,2648.7,8.0]
[1748536264893,8.98103188,2649.2,2648.7,8.0]
[1748536265320,8.98103188,2649.2,2648.6,3.77551568]
[1748536265321,0.771,2648.9,2648.5,10.0]
[1748536265524,0.8315,2648.7,2648.3,4.16195009]
[1748536265946,0.8315,2648.7,2648.5,13.77563019]
[1748536266105,3.962,2648.8,2648.7,10.0]
[1748536266306,1.4,2649.0,2648.3,3.7759837]
[1748536266307,2.2315,2649.0,2648.3,3.7759837]
[1748536266510,2.2315,2649.0,2648.9,3.77515194]
[1748536267430,2.2315,2649.0,2648.9,4.15525124]
[1748536267741,1.4,2649.0,2648.9,4.15525124]
[1748536268799,1.4,2649.0,2648.9,4.94830488]
[1748536269494,1.4,2649.0,2648.9,48.39416188]
[1748536269696,1.4,2649.0,2648.9,46.02872188]
[1748536270594,0.7964,2649.4,2649.3,3.77458196]
[1748536270794,0.7558,2649.8,2649.4,3.77439024]
[1748536271113,3.962,2649.7,2649.4,3.77431046]
[1748536272248,0.7558,2649.8,2649.6,10.0]
[1748536272536,1.12136059,2650.2,2649.8,3.7738525]
[1748536272692,1.12136059,2650.2,2649.6,3.77413026]
[1748536272693,0.36059771,2650.1,2649.7,3.77393188]
[1748536272894,4.73,2650.2,2649.8,3.77384112]
[1748536273090,1.18288405,2650.1,2649.7,3.77393944]
[1748536273337,0.82229359,2650.1,2649.7,3.77393944]
[1748536273739,0.82229359,2650.1,2649.6,3.77414738]
[1748536273740,0.768,2650.2,2649.4,10.0]
[1748536273907,4.73,2650.2,2649.9,3.77366938]
[1748536274227,0.768,2650.2,2650.0,3.77357779]
[1748536275214,0.7591,2650.6,2650.1,3.77332432]
[1748536275846,5.1742574,2650.6,2650.1,3.77332432]
[1748536276064,5.1742574,2650.6,2650.2,3.77327159]
[1748536276623,5.1742574,2650.6,2650.0,8.30692273]
[1748536276823,8.94704799,2650.6,2650.0,3.819294]
[1748536277026,0.7748,2650.1,2649.5,17.801398]
[1748536277212,0.7748,2650.1,2649.7,16.590609]
[1748536277413,1.14222785,2650.5,2649.9,3.7736577]
[1748536277647,3.961,2650.4,2649.9,3.77362568]
[1748536278013,3.961,2650.4,2650.0,3.77357289]
[1748536278228,3.961,2650.4,2650.2,3.77329926]
[1748536278533,3.961,2650.4,2650.2,3.77329417]
[1748536279171,0.7818,2650.5,2650.3,3.77312777]
[1748536279330,0.7818,2650.5,2650.2,3.77320794]
[1748536280270,0.7818,2650.5,2650.2,10.0]
[1748536280580,0.7818,2650.5,2650.1,3.77341111]
[1748536280581,0.7818,2650.5,2650.1,5.90916504]
[1748536280734,0.7818,2650.5,2650.3,3.77314284]
[1748536281072,0.7818,2650.5,2650.1,3.77344168]
[1748536281256,0.7818,2650.5,2650.2,3.77323104]
[1748536282401,0.7818,2650.5,2650.2,3.77322974]
[1748536282963,0.7818,2650.5,2650.3,3.77307894]
[1748536283291,4.7551,2650.7,2650.3,3.77306658]
[1748536283487,4.7551,2650.7,2650.2,13.56722]
[1748536283650,3.77275972,2650.6,2650.1,15.87243952]
[1748536283854,3.77275972,2650.6,2650.1,13.77336152]
[1748536284054,4.56669807,2650.7,2650.3,10.0]
[1748536284406,0.7941,2650.7,2650.3,10.37108564]
[1748536284700,4.56672619,2650.7,2650.3,10.37108564]
[1748536284870,0.7941,2650.7,2650.3,4.1442344]
[1748536285066,4.7541,2650.7,2650.4,3.77299077]
[1748536285472,4.7541,2650.7,2650.4,3.77293346]
[1748536285994,0.7941,2650.7,2650.4,3.77289161]
[1748536286193,0.7941,2650.7,2650.5,13.77276225]
[1748536286391,0.7941,2650.7,2650.5,1.79169513]
[1748536286592,0.7941,2650.7,2650.5,3.77278707]
[1748536286994,0.7941,2650.7,2650.4,10.0]
[1748536286995,0.7941,2650.7,2650.6,3.7727307]
[1748536287160,1.064,2651.2,2650.4,3.77300915]
[1748536287161,3.96,2650.9,2650.7,3.77254127]
[1748536287360,3.96,2650.9,2650.6,3.77267067]
[1748536287556,0.7599,2651.0,2650.6,3.77267067]
[1748536287762,4.7199,2651.0,2650.6,5.14991627]
[1748536288059,4.7199,2651.0,2650.7,10.0]
[1748536288480,4.7199,2651.0,2650.3,10.37663042]
[1748536288666,0.7599,2650.6,2650.3,10.37663042]
[1748536288868,0.7599,2650.6,2650.3,10.0]
[1748536289156,0.7599,2650.6,2650.0,3.77350535]
[1748536289157,8.49172003,2650.6,2650.0,11.281878]
[1748536289389,8.49169181,2650.6,2650.0,1.1281878]
[1748536289595,3.77290213,2650.5,2650.0,3.77353049]
[1748536290088,4.7189,2650.6,2650.2,3.773281]
[1748536290460,8.49163312,2650.6,2650.2,10.0]